[Event "Super United Croatia GCT Blitz 2022"]
[Site "Zagreb"]
[Date "2022.07.23"]
[Round "7"]
[White "Firouzja, Alireza"]
[Black "Saric, Ivan"]
[Result "0-1"]
[ECO "B50"]
[WhiteElo "2793"]
[BlackElo "2680"]
[Annotator "TA"]
[PlyCount "78"]
[EventDate "2022.07.20"]
[EventType "tourn"]
[EventCountry "CRO"]
[SourceTitle "playchess.com"]
[Source "ChessBase"]
[SourceQuality "1"]
[TimeControl "300+2"]

{[%evp 12,78,0,0,0,7,0,-20,-10,-10,-13,-25,-16,-9,-9,-29,-24,-18,-14,-23,-17,-71,0,0,0,0,0,0,0,0,52,59,73,72,79,77,46,-393,-369,-509,-494,-489,-450,-461,-444,-432,-432,-427,-462,-419,-404,-445,-454,-489,-420,-675,-678,-708,-683,-906,-893,-1249,-1224,-29985,-29986,-29990,-29991,-29991,-29989]} 1. e4 {[%emt 0:00:01]} c5 {[%emt 0:00:01]} 2. Nf3 d6 3. Bc4 {[%emt 0:00:02]} Nc6 {[%emt 0:00:04]} 4. O-O {[%emt 0:00:04]} Nf6 {[%emt 0:00:02]} 5. d3 {[%emt 0:00:01]} e6 {[%emt 0:00:01]} 6. c3 {[%emt 0:00:01]} Be7 {[%emt 0:00:02]} 7. Bb3 {[%emt 0:00:01]} b5 {[%emt 0:00:10][%cal Bb7b5,Bb5b4][%mdl 32] B50: Sicilian: 2...d6, Miscellaneous.} 8. Re1 {[%emt 0:00:04]} Bb7 $5 {[%emt 0:00:02][%mdl 4] Exploring less charted territory.} 9. Nbd2 {[%emt 0:00:05]} O-O {[%emt 0:00:08] The position is equal.} 10. h3 {[%emt 0:00:02]} a5 {[%emt 0:00:21] [#]} 11. a4 $146 {[%emt 0:00:07]} ({Predecessor:} 11. a3 a4 12. Bc2 e5 13. Nf1 Re8 14. Ng3 g6 15. Bh6 d5 16. Qc1 dxe4 17. dxe4 {1-0 (45) Delgado Ramirez,N (2554)-Pupo,E (2375) Merida 2004}) 11... b4 {[%emt 0:00:00]} 12. Bc4 {[%emt 0:00:15]} d5 {[%emt 0:00:10]} 13. Bb5 {[%emt 0:00:13]} Na7 {[%emt 0:00:08]} 14. e5 {[%emt 0:00:04]} Nd7 {[%emt 0:00:22]} 15. Bxd7 {[%emt 0:00:02]} Qxd7 {[%emt 0:00:01]} 16. Nf1 {[%emt 0:00:01]} (16. Nb3 $11 {remains equal.}) 16... d4 {[%emt 0:00:17]} (16... Rfc8 $17) 17. c4 $11 {[%emt 0:00:10]} f5 {[%emt 0:00:58]} 18. exf6 $1 {[%emt 0:00:10]} Rxf6 {[%emt 0:00:01]} 19. Ne5 {[%emt 0:00:07]} Qc7 {[%emt 0:00:03] aiming for ...Raf8.} 20. Bg5 {[%emt 0:01:29]} Rf5 {[%emt 0:00:49]} ({Black should play} 20... Rxf2 $1 $11 21. Kxf2 Rf8+ 22. Kg1 Bxg5) 21. Bxe7 $14 {[%emt 0:00:02]} Qxe7 {[%emt 0:00:07]} 22. Ng3 {[%emt 0:00:12] Pair of Knights!} Rf4 {[%emt 0:00:10]} 23. Qh5 {[%emt 0:00:04]} Raf8 {[%emt 0:00:06]} 24. Re2 {[%emt 0:00:01][%mdl 8192] [#] White does not recover from this.} (24. Ng4 $1 $14 {stays ahead.}) 24... Rh4 $19 {[%emt 0:00:12]} 25. Qxh4 {[%emt 0:00:27]} Qxh4 {[%emt 0:00:02]} 26. Nd7 {[%emt 0:00:01]} Rf7 {[%emt 0:00:46]} 27. Nxc5 {[%emt 0:00:02]} Bc8 {[%emt 0:00:01]} 28. Nxe6 {[%emt 0:00:11]} Bxe6 {[%emt 0:00:03]} 29. Rxe6 {[%emt 0:00:01]} Qf4 {[%emt 0:00:05]} 30. Ne4 {[%emt 0:00:05]} h6 {[%emt 0:00:04]} 31. Re1 {[%emt 0:00:10]} Kh7 {[%emt 0:00:01]} 32. Ra6 {[%emt 0:00:12]} Nc8 {[%emt 0:00:05]} 33. c5 {[%emt 0:00:53]} (33. b3 $142) 33... Ne7 {[%emt 0:00:29]} 34. Re6 {[%emt 0:00:07]} Nd5 {[%emt 0:00:02]} 35. c6 {[%emt 0:00:05] [#]} Nc3 $1 {[%emt 0:00:07][%mdl 512]} 36. g3 {[%emt 0:00:13]} (36. Rf1 Qf5) 36... Qf5 {[%emt 0:00:03] Strongly threatening ...Nxe4.} 37. c7 {[%emt 0:00:15]} Nxe4 {[%emt 0:00:05] Black mates.} 38. R6xe4 {[%emt 0:00:12]} Qxf2+ {[%emt 0:00:00]} 39. Kh1 {[%emt 0:00:01]} Rxc7 {[%emt 0:00:02] Weighted Error Value: White=0.75/Black=0.10 (very precise)} 0-1

[Event "Super United Croatia GCT Blitz 2022"]
[Site "Zagreb"]
[Date "2022.07.23"]
[Round "7"]
[White "So, Wesley"]
[Black "Dominguez Perez, Leinier"]
[Result "1/2-1/2"]
[ECO "A30"]
[WhiteElo "2773"]
[BlackElo "2754"]
[Annotator "TA"]
[PlyCount "185"]
[EventDate "2022.07.20"]
[EventType "tourn"]
[EventCountry "CRO"]
[SourceTitle "playchess.com"]
[Source "ChessBase"]
[SourceQuality "1"]
[TimeControl "300+2"]

{[%evp 9,185,0,0,0,24,-5,-9,-4,-13,-12,0,-17,0,0,0,0,1,21,55,56,50,49,101,115,103,101,183,183,183,198,198,198,198,198,205,205,205,179,201,136,130,126,127,127,127,127,143,132,141,145,132,119,108,51,108,83,125,120,115,47,168,168,168,168,205,205,205,205,205,205,205,205,205,205,205,205,205,205,205,205,205,205,205,205,205,205,205,205,205,205,205,205,205,205,205,205,205,205,205,205,205,205,205,197,197,197,197,197,197,197,197,197,197,197,197,197,197,197,197,197,197,197,197,197,197,197,197,197,197,197,197,197,197,197,197,152,152,129,129,129,129,120,120,120,120,120,120,120,120,120,120,120,120,120,120,120,120,91,120,0,120,91,120,98,98,98,98,106,106,106,106,106,106,0,113,0,120,120]} 1. Nf3 {[%emt 0:00:01]} Nf6 {[%emt 0:00:01]} 2. b3 {[%emt 0:00:01]} c5 {[%emt 0:00:01]} 3. Bb2 {[%emt 0:00:02]} Nc6 {[%emt 0:00:01]} 4. c4 {[%emt 0:00:05]} d5 {[%emt 0:00:01]} 5. cxd5 {[%emt 0:00:04]} Nxd5 {[%emt 0:00:02]} 6. Nc3 {[%emt 0:00:02] A30: Symmetrical English: Double Fianchetto and Hedgehog.} e5 {[%emt 0:00:06]} 7. Nxd5 $5 {[%emt 0:00:16][%mdl 4] Leaves trodden paths.} (7. e3 $5 {[%cal Rc3d5]}) 7... Qxd5 {[%emt 0:00:01]} 8. e3 {[%emt 0:00:00] The position is equal.} Be7 {[%emt 0:00:53]} 9. Bc4 {[%emt 0:00:07]} Qd6 {[%emt 0:00:00] [#]} 10. Bb5 $146 {[%emt 0:00:42]} ({Predecessor:} 10. Qc2 Be6 11. a3 O-O 12. h4 h6 13. Bxe6 Qxe6 14. Qc4 Qf5 15. d3 Rad8 16. Rd1 {½-½ (33) Nihal,S (2620)-Gelfand,B (2675) Biel 2021}) 10... f6 {[%emt 0:00:24]} 11. O-O {[%emt 0:00:03]} O-O {[%emt 0:00:21]} 12. d4 {[%emt 0:00:03]} cxd4 {[%emt 0:00:08]} (12... exd4 {with more complications.} 13. exd4 Bg4 14. h3 Bh5) 13. exd4 {[%emt 0:00:00]} Nxd4 {[%emt 0:00:18]} 14. Nxd4 {[%emt 0:00:03]} exd4 {[%emt 0:00:01]} 15. Re1 {[%emt 0:00:15]} Bd7 {[%emt 0:00:44]} (15... Kh8 $14) 16. Bc4+ $1 $16 {[%emt 0:00:37]} Kh8 {[%emt 0:00:01]} 17. a4 $1 {[%emt 0:00:01]} (17. Bxd4 Rfd8 $14) (17. Qxd4 $6 Qxd4 18. Bxd4 Bb4 $11) 17... Rad8 {[%emt 0:01:36] [#]} (17... Bc6 $16) 18. Ba3 $1 $18 {[%emt 0:00:38][%mdl 64] Overworked Piece} ({Don't do} 18. Bxd4 $6 b6 $11) ({Stronger than} 18. Qxd4 Qxd4 19. Bxd4 Bb4 $11) 18... Qxa3 {[%emt 0:00:02]} 19. Rxa3 {[%emt 0:00:01]} Bxa3 {[%emt 0:00:01]} 20. Qxd4 {[%emt 0:00:10]} b6 {[%emt 0:00:23]} 21. Rd1 {[%emt 0:00:23] aiming for Bb5.} Bc5 {[%emt 0:00:12]} 22. Qd3 {[%emt 0:00:24] And now Bb5 would win.} Be7 {[%emt 0:00:02]} 23. Qe2 {[%emt 0:00:05] Inhibits Bg4.} Bc5 {[%emt 0:00:05]} 24. h4 {[%emt 0:00:07][%cal Bh2h4,Bh4h5][%mdl 32] Black must now prevent Qd2.} Rde8 {[%emt 0:00:09]} 25. Qf3 {[%emt 0:00:23]} ({But not} 25. Rxd7 Rxe2 26. Bxe2 a5 $14) 25... Bc8 {[%emt 0:00:01]} 26. h5 {[%emt 0:00:05]} h6 {[%emt 0:00:04]} 27. Bd3 {[%emt 0:00:14]} f5 {[%emt 0:00:02]} 28. Bb5 {[%emt 0:00:03]} Re4 {[%emt 0:00:09]} 29. Bc6 {[%emt 0:00:14] Inhibits Bb7.} Re7 {[%emt 0:00:03]} 30. g3 {[%emt 0:00:07]} a5 {[%emt 0:00:01]} 31. Rd5 {[%emt 0:00:05]} (31. Rd2 $16) 31... Re1+ {[%emt 0:00:06]} (31... f4 $1 $14) 32. Kg2 {[%emt 0:00:05]} Be6 {[%emt 0:00:01]} 33. Rd1 $36 {[%emt 0:00:12][%mdl 2048] White is on the roll.} Re5 {[%emt 0:00:02][%cal Of5f4]} 34. Bd5 {[%emt 0:00:08]} ({White should play} 34. Bd7 $16) 34... Bxd5 {[%emt 0:00:05]} (34... Bd7 $1 $14) 35. Rxd5 {[%emt 0:00:01]} Rxd5 {[%emt 0:00:01]} 36. Qxd5 $14 {[%emt 0:00:01][%mdl 4096] Endgame KQ-KRB} Rf6 {[%emt 0:00:01]} 37. Qd8+ {[%emt 0:00:03]} Kh7 {[%emt 0:00:01]} 38. Qe8 {[%emt 0:00:02]} Rd6 {[%emt 0:00:04]} 39. Qe2 {[%emt 0:00:05] Against Rd2} Rf6 {[%emt 0:00:00]} 40. Qd3 {[%emt 0:00:00]} Kh8 {[%emt 0:00:01]} 41. f3 {[%emt 0:00:01]} Rf8 {[%emt 0:00:01]} 42. Kf1 {[%emt 0:00:04]} Rf6 {[%emt 0:00:01]} 43. Qd5 {[%emt 0:00:02]} Rf8 {[%emt 0:00:01]} 44. Ke2 {[%emt 0:00:02]} Rf6 {[%emt 0:00:01]} 45. Qa8+ {[%emt 0:00:03]} Rf8 {[%emt 0:00:00]} 46. Qc6 {[%emt 0:00:01]} Rf6 {[%emt 0:00:02]} 47. Qd7 {[%emt 0:00:01]} Kh7 {[%emt 0:00:02]} 48. Qe8 {[%emt 0:00:02]} Rf8 {[%emt 0:00:01]} 49. Qg6+ {[%emt 0:00:02]} Kh8 {[%emt 0:00:01]} 50. Kd3 {[%emt 0:00:01]} Rf6 {[%emt 0:00:02]} 51. Qe8+ {[%emt 0:00:01]} Kh7 52. Kc4 {[%emt 0:00:01]} Rf8 {[%emt 0:00:07]} 53. Qd7 {[%emt 0:00:02]} Rf6 {[%emt 0:00:01]} 54. Qd3 {[%emt 0:00:01]} Kh8 {[%emt 0:00:01]} 55. Kb5 {[%emt 0:00:00]} Rf8 {[%emt 0:00:03]} 56. b4 {[%emt 0:00:11]} Bxb4 {[%emt 0:00:01]} 57. Kxb6 {[%emt 0:00:01]} Rf6+ {[%emt 0:00:01]} 58. Kb5 {[%emt 0:00:01]} Rf8 {[%emt 0:00:01]} 59. Qd7 {[%emt 0:00:02]} Rf6 {[%emt 0:00:01]} 60. Kc4 {[%emt 0:00:04]} Kh7 {[%emt 0:00:02]} 61. Kd5 {[%emt 0:00:03]} Kh8 {[%emt 0:00:01]} 62. Qc8+ {[%emt 0:00:04]} Rf8 {[%emt 0:00:01]} 63. Qc2 {[%emt 0:00:04]} Rf6 {[%emt 0:00:01]} 64. Qe2 {[%emt 0:00:05]} Rd6+ {[%emt 0:00:02]} 65. Ke5 {[%emt 0:00:03]} Rf6 {[%emt 0:00:01]} 66. Qd3 {[%emt 0:00:01]} Rf8 {[%emt 0:00:02]} 67. Kf4 {[%emt 0:00:03]} Rf6 {[%emt 0:00:02]} 68. Ke3 {[%emt 0:00:04]} Re6+ {[%emt 0:00:01] [#]} 69. Kf2 $1 {[%emt 0:00:01]} Rf6 {[%emt 0:00:01]} 70. Kg2 {[%emt 0:00:01]} Rf8 {[%emt 0:00:01]} 71. Kh3 {[%emt 0:00:03]} Rf6 {[%emt 0:00:02]} 72. g4 {[%emt 0:00:01]} fxg4+ {[%emt 0:00:01]} 73. fxg4 {[%emt 0:00:01]} Rf8 {[%emt 0:00:04]} 74. Qd5 {[%emt 0:00:03]} Rf6 {[%emt 0:00:02]} 75. g5 {[%emt 0:00:05]} hxg5 {[%emt 0:00:01]} 76. Qxg5 {[%emt 0:00:01]} Rh6 {[%emt 0:00:00]} 77. Kg4 {[%emt 0:00:02]} Rf6 {[%emt 0:00:01]} 78. Qd5 {[%emt 0:00:02]} Rh6 {[%emt 0:00:01]} 79. Qa8+ {[%emt 0:00:03]} Kh7 {[%emt 0:00:01]} 80. Qe4+ {[%emt 0:00:01]} Kh8 {[%emt 0:00:01]} 81. Qf5 {[%emt 0:00:04]} Rf6 {[%emt 0:00:01]} 82. Qc8+ {[%emt 0:00:02]} Kh7 {[%emt 0:00:01]} 83. Qc2+ {[%emt 0:00:02]} Kh8 {[%emt 0:00:01]} 84. Qe4 {[%emt 0:00:01]} Rh6 $1 {[%emt 0:00:01]} 85. Kf3 {[%emt 0:00:02]} Rf6+ {[%emt 0:00:01]} 86. Ke2 {[%emt 0:00:01]} Rh6 {[%emt 0:00:01]} 87. Kd3 {[%emt 0:00:03]} Rf6 {[%emt 0:00:01]} 88. Kc4 {[%emt 0:00:02]} Rh6 {[%emt 0:00:01]} 89. Qe8+ {[%emt 0:00:02]} Kh7 {[%emt 0:00:01]} 90. Kd5 {[%emt 0:00:02]} Rf6 {[%emt 0:00:02]} 91. Kc4 {[%emt 0:00:01]} Rh6 $1 {[%emt 0:00:02]} 92. Kd5 {[%emt 0:00:01]} Rf6 $1 {[%emt 0:00:00]} 93. Ke4 {[%emt 0:00:08] Weighted Error Value: White=0.06 (flawless) /Black=0.11 (very precise)} 1/2-1/2

[Event "Super United Croatia GCT Blitz 2022"]
[Site "Zagreb"]
[Date "2022.07.23"]
[Round "7"]
[White "Topalov, Veselin"]
[Black "Vachier-Lagrave, Maxime"]
[Result "0-1"]
[ECO "A16"]
[WhiteElo "2728"]
[BlackElo "2760"]
[Annotator "TA"]
[PlyCount "82"]
[EventDate "2022.07.20"]
[EventType "tourn"]
[EventCountry "CRO"]
[SourceTitle "playchess.com"]
[Source "ChessBase"]
[SourceQuality "1"]
[TimeControl "300+2"]

{[%evp 18,82,0,-6,0,0,-7,0,0,-28,-12,-10,-12,-34,-33,-33,-41,-33,-19,-42,-32,-22,-27,-38,-19,-60,-64,-50,-43,-57,-49,-71,-72,-85,-55,-76,-67,-77,-62,-106,-52,-152,-150,-151,-127,-153,-85,-267,-267,-398,-387,-373,-226,-604,-568,-666,-574,-1149,-1073,-2331,-2301,-29990,-29991,-29996,-29997,-29998,-29999]} 1. c4 {[%emt 0:00:01]} Nf6 {[%emt 0:00:04]} 2. Nf3 {[%emt 0:00:10]} g6 {[%emt 0:00:05]} 3. Nc3 {[%emt 0:00:02]} d5 {[%emt 0:00:02]} 4. cxd5 {[%emt 0:00:05]} Nxd5 {[%emt 0:00:01]} 5. e4 {[%emt 0:00:01]} Nxc3 6. dxc3 {[%emt 0:00:01]} Qxd1+ {[%emt 0:00:03]} 7. Kxd1 {[%emt 0:00:01]} f6 {[%emt 0:00:04]} 8. Bc4 {[%emt 0:00:10]} e5 {[%emt 0:00:08]} 9. Ke2 {[%emt 0:00:10]} Nd7 {[%emt 0:00:05]} 10. Be3 {[%emt 0:00:10]} Nc5 {[%emt 0:00:10] has lost popularity (10...Bc5). A16: English Opening: 1...Nf6 with ...d5.} (10... Bc5 {looks sharper.} 11. Bh6 Ke7 12. a4 a5) 11. Nd2 {[%emt 0:00:06]} Bd7 {[%emt 0:00:09]} 12. f3 {[%emt 0:00:19] [#]} b5 $5 $146 {[%emt 0:00:06][%mdl 8] The position is equal. New and interesting.} ({Predecessor:} 12... a5 13. h4 b5 14. Bd5 c6 15. Bb3 Nxb3 16. Nxb3 b4 17. Rhd1 Be6 18. Nc5 Bc4+ {½-½ (63) Rogers,I (2538)-Sutovsky,E (2651) Batumi 2001}) 13. Bd5 {[%emt 0:00:11]} (13. Bb3 $5) 13... c6 {[%emt 0:00:02]} 14. Bb3 {[%emt 0:00:01]} a5 {[%emt 0:00:04]} 15. a4 {[%emt 0:00:16]} Nxb3 {[%emt 0:00:01]} 16. Nxb3 {[%emt 0:00:02]} Be6 {[%emt 0:00:02]} 17. Nd2 {[%emt 0:00:11]} Bd6 {[%emt 0:00:05]} 18. Rhc1 {[%emt 0:01:28]} Ke7 {[%emt 0:00:11]} 19. c4 {[%emt 0:00:24]} Rhb8 {[%emt 0:00:08][%cal Bh8b8,Bb8b5,Bb5b4][%mdl 32]} 20. cxb5 {[%emt 0:00:19]} cxb5 {[%emt 0:00:02]} 21. Rc2 {[%emt 0:00:02]} bxa4 {[%emt 0:00:19]} 22. Rxa4 {[%emt 0:00:03]} Rb5 {[%emt 0:00:25]} 23. Ra1 {[%emt 0:00:47]} a4 {[%emt 0:00:15]} 24. Kf2 {[%emt 0:00:21]} f5 {[%emt 0:00:17]} 25. g3 {[%emt 0:00:13]} Kd7 {[%emt 0:00:11]} 26. h4 {[%emt 0:00:04]} Rb4 {[%emt 0:00:14] And now ...f4 would win.} 27. Ke2 {[%emt 0:00:04]} Ra5 {[%emt 0:00:08]} 28. Kd3 {[%emt 0:00:02]} Rab5 {[%emt 0:00:07]} (28... Ke7 $17 29. Bg5+ Kd7) 29. Ke2 {[%emt 0:00:02] [#]} ({White should play} 29. Rc3 $15) 29... f4 $1 $17 {[%emt 0:00:11]} (29... Rxb2 30. Rxb2 Rxb2 31. Rxa4 $15) 30. gxf4 {[%emt 0:00:02]} exf4 {[%emt 0:00:02]} 31. Bf2 {[%emt 0:00:03]} Be5 {[%emt 0:00:08] Black is more active.} ({Inferior is} 31... Rxb2 32. Rxb2 Rxb2 33. Rxa4 $17) (31... Be7 $142 32. Ra3 Ke8) 32. Rd1 $2 {[%emt 0:00:03] [#] White does not recover from this.} (32. Ra3 $17) 32... Ke8 $1 $19 {[%emt 0:00:08]} ({Weaker is} 32... Rxb2 33. Nc4+ Ke8 34. Nxb2 Rxb2 35. Rxb2 Bc4+ 36. Ke1 Bxb2 37. Bd4 $14) 33. Rc6 {[%emt 0:00:01]} (33. Ra1 $142) 33... Bd7 {[%emt 0:00:06] A strong pair of Bishops.} 34. Ra6 {[%emt 0:00:02]} Bxb2 {[%emt 0:00:12]} 35. Ra8+ $2 {[%emt 0:00:05]} (35. Ke1) 35... Rb8 {[%emt 0:00:01]} 36. Ra7 {[%emt 0:00:01]} Rc8 {[%emt 0:00:15] Inhibits Bc5.} 37. Ra5 {[%emt 0:00:03]} Bb5+ {[%emt 0:00:06]} 38. Ke1 {[%emt 0:00:01]} Bc3 {[%emt 0:00:04] Threatens to win with ...Rd8.} 39. Rc1 {[%emt 0:00:05]} Bxd2+ {[%emt 0:00:03] Black mates.} 40. Kxd2 {[%emt 0:00:01]} Rb2+ {[%emt 0:00:01]} 41. Kd1 {[%emt 0:00:01]} Be2+ {[%emt 0:00:01] Weighted Error Value: White=0.96/Black=0.14 (very precise)} 0-1

[Event "Super United Croatia GCT Blitz 2022"]
[Site "Zagreb"]
[Date "2022.07.23"]
[Round "7"]
[White "Van Foreest, Jorden"]
[Black "Nepomniachtchi, Ian"]
[Result "0-1"]
[ECO "C42"]
[WhiteElo "2678"]
[BlackElo "2766"]
[Annotator "TA"]
[PlyCount "94"]
[EventDate "2022.07.20"]
[EventType "tourn"]
[EventCountry "CRO"]
[SourceTitle "playchess.com"]
[Source "ChessBase"]
[SourceQuality "1"]
[TimeControl "300+2"]

{[%evp 16,94,41,33,29,24,49,27,26,34,25,34,20,21,26,27,27,21,24,28,26,25,29,15,12,13,8,4,7,6,6,5,4,1,14,1,42,0,24,26,54,35,40,60,47,45,49,50,53,0,0,0,0,0,0,0,0,0,84,0,0,0,0,0,0,0,0,0,0,-6,-6,-6,-7,-262,-225,-166,-60,-12842,-12842,-12841,-12841]} 1. e4 {[%emt 0:00:01]} e5 {[%emt 0:00:01]} 2. Nf3 {[%emt 0:00:01]} Nf6 {[%emt 0:00:01]} 3. Nxe5 {[%emt 0:00:02]} d6 {[%emt 0:00:00]} 4. Nf3 {[%emt 0:00:02]} Nxe4 {[%emt 0:00:01]} 5. d4 {[%emt 0:00:01]} d5 {[%emt 0:00:01]} 6. Bd3 {[%emt 0:00:01]} Nc6 {[%emt 0:00:01]} 7. O-O {[%emt 0:00:03]} Be7 {[%emt 0:00:00]} 8. Re1 {[%emt 0:00:03]} Bf5 {[%emt 0:00:02]} 9. Nbd2 {[%emt 0:00:23] is now more promising than 9.c4.} Nxd2 {[%emt 0:00:07] C42: Petroff Defence: 3 Nxe5 and unusual White 3rd moves.} 10. Qxd2 {[%emt 0:00:01]} Qd7 {[%emt 0:00:01]} 11. Bb5 {[%emt 0:00:05]} O-O {[%emt 0:00:08] White has an edge.} 12. Ne5 {[%emt 0:00:12]} Qd6 {[%emt 0:00:00]} 13. Nxc6 {[%emt 0:00:51]} bxc6 {[%emt 0:00:02]} 14. Bd3 {[%emt 0:00:01]} Bxd3 {[%emt 0:00:46]} 15. Qxd3 {[%emt 0:00:02]} c5 {[%emt 0:00:01]} 16. dxc5 {[%emt 0:00:11]} Qxc5 {[%emt 0:00:01]} 17. Be3 {[%emt 0:00:13] [#]} Qc6 $146 {[%emt 0:00:12]} ({Predecessor:} 17... Qd6 18. c4 Rfd8 19. Qxd5 Qxd5 20. cxd5 Rxd5 21. Rad1 Rf5 22. b3 Bd6 23. Rd4 h5 24. g3 a5 25. Rc1 {½-½ (25) Bernal Varela,N (2382)-Au Cardero,R (2289) ICCF email 2018}) 18. Rad1 {[%emt 0:00:06]} Rfd8 {[%emt 0:00:10]} 19. c3 {[%emt 0:00:33]} a5 {[%emt 0:00:07]} 20. h3 {[%emt 0:00:04]} a4 {[%emt 0:00:03]} 21. Bf4 {[%emt 0:00:04]} Bf6 {[%emt 0:00:13]} 22. Be5 {[%emt 0:00:02]} Rab8 {[%emt 0:00:13]} 23. Bxf6 {[%emt 0:00:19]} Qxf6 {[%emt 0:00:01]} 24. Rd2 {[%emt 0:00:01][%cal Bd1d2,Bd2d4,Bd4a4][%mdl 32]} h6 {[%emt 0:00:22]} 25. Qc2 {[%emt 0:00:07]} Qa6 {[%emt 0:00:18]} 26. Rd4 {[%emt 0:00:04]} a3 {[%emt 0:00:09]} 27. b3 {[%emt 0:00:01]} c5 {[%emt 0:00:03]} 28. Ra4 {[%emt 0:00:04]} Qd6 {[%emt 0:00:16][%cal Oc5c4]} 29. Rxa3 {[%emt 0:00:16]} Re8 {[%emt 0:00:12][%cal Re8e1] [#]} 30. Rd1 {[%emt 0:00:07]} Re5 {[%emt 0:00:01]} 31. Ra4 {[%emt 0:00:44][%cal Oa4e4]} Rbe8 {[%emt 0:00:02] ( -> ...Re1+)} 32. g3 {[%emt 0:00:02]} (32. Rf1 $14) 32... d4 $11 {[%emt 0:00:11]} 33. cxd4 {[%emt 0:00:29]} Re1+ {[%emt 0:00:02]} 34. Rxe1 {[%emt 0:00:09]} Rxe1+ {[%emt 0:00:01][%mdl 4096] Endgame KQR-KQR} 35. Kg2 {[%emt 0:00:00]} Qd5+ {[%emt 0:00:09]} 36. f3 {[%emt 0:00:01]} Re3 {[%emt 0:00:01]} (36... cxd4 $11 37. Qc4 Qe5 38. Qxd4 (38. Ra8+ Kh7 $11) 38... Re2+ 39. Kf1 Re1+ 40. Kg2 Re2+ 41. Kf1 Re1+ 42. Kg2) 37. Qf2 {[%emt 0:00:07]} ({White should play} 37. Qd1 $16) 37... cxd4 {[%emt 0:00:24][%cal Bc5d4,Bd4d3,Bd3c2][%mdl 32]} 38. Rc4 {[%emt 0:00:01]} h5 {[%emt 0:00:16] Threatens to win with ...Qe6.} (38... Qe6 $5 39. Rc2 (39. Rxd4 $2 Re2 $19) 39... d3 $11) 39. h4 {[%emt 0:00:01]} g6 {[%emt 0:00:18]} (39... Qe6 $5 40. Rc2 (40. Rxd4 $2 Re2 $19) 40... d3 $11) 40. Rc2 {[%emt 0:00:05]} Rc3 {[%emt 0:00:11]} 41. Rd2 {[%emt 0:00:05]} d3 {[%emt 0:00:03]} 42. Qe3 {[%emt 0:00:08]} Rc2 {[%emt 0:00:02] And now ...Qa5 would win.} 43. Kf2 $1 {[%emt 0:00:02]} Qa5 {[%emt 0:00:10][%csl LRa2,LRd2]} 44. Rxc2 {[%emt 0:00:07][%mdl 8192]} (44. Ke1 $1 $11) 44... dxc2 $19 {[%emt 0:00:02]} 45. a4 {[%emt 0:00:20] [#]} Qd5 {[%emt 0:00:10]} ({Inferior is} 45... Qc7 46. Qc1 $17) ({Better is} 45... Qb4 $1 $19 {[%cal Rb4a3] aiming for ...Qa3.} 46. Qc1 Qxb3) 46. Qc3 $2 {[%emt 0:00:06][%mdl 8192]} (46. f4 $15) 46... Qd1 {[%emt 0:00:02]} 47. Qc8+ {[%emt 0:00:02]} Kh7 {[%emt 0:00:02] Weighted Error Value: White=0.39/Black=0.11 (very precise)} 0-1